bitfinex/quotes_SOLUSD_20251018
["timestamp","ask_amount","ask_price","bid_price","bid_amount"]
[1760795921402,12.81815715,185.67,185.66,1e-08]
[1760795921625,23.69463236,185.67,185.66,1e-08]
[1760795921824,23.03463236,185.67,185.66,1e-08]
[1760795922527,12.15815715,185.67,185.66,1e-08]
[1760795923028,23.03463236,185.67,185.66,1e-08]
[1760795923221,23.81463236,185.67,185.66,1e-08]
[1760795923527,18.42873265,185.67,185.66,1e-08]
[1760795923826,23.81463236,185.67,185.66,1e-08]
[1760795925301,32.20209408,185.67,185.66,1e-08]
[1760795926016,48.39209408,185.67,185.66,1e-08]
[1760795929826,12.8764752,185.63,185.62,0.2]
[1760795930122,19.76873264,185.63,185.62,0.2]
[1760795930304,20.42873264,185.63,185.62,0.2]
[1760795930916,19.76873264,185.63,185.62,0.2]
[1760795931223,17.76873265,185.63,185.62,0.2]
[1760795931424,19.76873264,185.63,185.62,0.2]
[1760795931628,20.42873264,185.63,185.62,0.2]
[1760795932026,19.04353548,185.63,185.62,1e-08]
[1760795932226,25.81579292,185.63,185.62,1e-08]
[1760795933037,42.00579292,185.63,185.62,1e-08]
[1760795936107,25.15579292,185.63,185.62,1e-08]
[1760795936308,23.15579293,185.63,185.62,1e-08]
[1760795936532,23.15579293,185.63,185.62,0.66000001]
[1760795937033,25.81579292,185.63,185.62,1e-08]
[1760795937835,23.81579293,185.63,185.62,1e-08]
[1760795938037,25.81579292,185.63,185.62,1e-08]
[1760795940832,25.15579292,185.63,185.62,1e-08]
[1760795941031,23.15579293,185.63,185.62,0.66000001]
[1760795941416,23.15579293,185.63,185.62,1e-08]
[1760795942109,27.97438598,185.63,185.62,1e-08]
[1760795942837,25.97438599,185.63,185.62,1e-08]
[1760795943042,27.97438598,185.63,185.62,1e-08]
[1760795943541,25.97438599,185.63,185.62,1e-08]
[1760795943740,28.63438598,185.63,185.62,1e-08]
[1760795945947,12.8764752,185.62,185.61,1e-08]
[1760795946140,20.30873264,185.62,185.61,1e-08]
[1760795947152,25.69608314,185.62,185.61,1e-08]
[1760795947535,35.7564752,185.6,185.59,1e-08]
[1760795947748,67.64873264,185.6,185.59,1e-08]
[1760795947947,73.42296675,185.6,185.59,1e-08]
[1760795948423,47.76296675,185.6,185.59,1e-08]
[1760795948624,6.89225744,185.6,185.59,0.71000001]
[1760795949026,23.15666368,185.6,185.59,0.71000001]
[1760795949834,23.15666368,185.6,185.59,1e-08]
[1760795950028,25.87666367,185.6,185.59,1e-08]
[1760795950240,25.15666367,185.6,185.59,1e-08]
[1760795950441,23.15666368,185.6,185.59,1e-08]
[1760795951627,23.15666368,185.6,185.59,0.71000001]
[1760795952439,23.15666368,185.6,185.59,1e-08]
[1760795953151,0.12,185.6,185.59,0.71000001]
[1760795955149,5.50793103,185.6,185.59,0.71000001]
[1760795956252,5.50793103,185.6,185.59,1e-08]
[1760795956949,5.50793103,185.6,185.59,0.68000001]
[1760795957349,5.50793103,185.6,185.59,1e-08]
[1760795959050,28.38793103,185.6,185.59,0.68000001]
[1760795959357,5.50793103,185.6,185.59,0.68000001]
[1760795959538,5.50793103,185.6,185.59,1e-08]
[1760795959851,5.50793103,185.6,185.59,0.68000001]
[1760795960058,5.50793103,185.6,185.59,1e-08]
[1760795960646,28.38793103,185.6,185.59,1e-08]
[1760795961062,5.50793103,185.6,185.59,1e-08]
[1760795961439,12.28018847,185.6,185.59,1e-08]
[1760795961752,23.15666368,185.6,185.59,1e-08]
[1760795962658,0.12,185.6,185.59,0.68000001]
[1760795962842,5.50793103,185.6,185.59,0.68000001]
[1760795965046,0.12,185.62,185.59,0.68000001]
[1760795965564,22.88,185.61,185.59,0.68000001]
[1760795965949,0.12,185.62,185.59,0.68000001]
[1760795966255,0.12,185.62,185.59,1e-08]
[1760795966256,22.88,185.6,185.59,1e-08]
[1760795966767,23.0,185.6,185.59,1e-08]
[1760795966943,28.38793103,185.6,185.59,1e-08]
[1760795968947,0.12,185.6,185.59,0.68000001]
[1760795969149,5.50793103,185.6,185.59,0.68000001]
[1760795969856,5.50793103,185.6,185.59,1e-08]
[1760795970156,5.50793103,185.6,185.59,0.68000001]
[1760795970356,0.12,185.6,185.59,1e-08]
[1760795970554,22.88,185.6,185.59,0.68000001]
[1760795971258,22.88,185.6,185.59,1e-08]
[1760795972352,5.50785104,185.61,185.59,1e-08]
[1760795972543,2.81856958,185.6,185.59,0.68000001]
[1760795972742,2.81856958,185.6,185.59,1e-08]
[1760795973470,25.69856958,185.6,185.59,0.68000001]
[1760795973658,2.81856958,185.6,185.59,0.68000001]
[1760795974257,25.69856958,185.6,185.59,0.68000001]
[1760795975163,25.69856958,185.6,185.59,1e-08]
[1760795975164,2.81856958,185.6,185.59,1e-08]
[1760795975858,2.81856958,185.6,185.59,0.68000001]
[1760795976250,25.69856958,185.6,185.59,0.68000001]
[1760795976876,2.81856958,185.6,185.59,1e-08]
[1760795977478,8.20650061,185.6,185.59,1e-08]
[1760795978552,25.69856958,185.6,185.59,1e-08]
[1760795979065,2.81856958,185.6,185.59,1e-08]
[1760795979269,2.93856958,185.6,185.59,1e-08]
[1760795979572,31.20650061,185.6,185.59,1e-08]
[1760795979764,25.81856958,185.6,185.59,1e-08]
[1760795980079,2.93856958,185.6,185.59,0.68000001]
[1760795980377,2.81856958,185.6,185.59,0.68000001]
[1760795981970,25.69856958,185.6,185.59,0.68000001]
[1760795982571,2.81856958,185.6,185.59,1e-08]
[1760795982765,25.81856958,185.6,185.59,1e-08]
[1760795983484,2.93856958,185.6,185.59,1e-08]
[1760795984254,8.32650061,185.6,185.59,1e-08]
[1760795984961,2.93856958,185.6,185.59,1e-08]
[1760795985279,2.81856958,185.6,185.59,1e-08]
[1760795985971,25.69856958,185.6,185.59,1e-08]
[1760795986481,2.81856958,185.6,185.59,1e-08]
[1760795986778,2.81856958,185.6,185.59,0.72000001]
[1760795987555,0.12,185.65,185.59,0.72000001]
[1760795987751,25.69758219,185.63,185.59,0.72000001]
[1760795988174,25.69758219,185.63,185.6,0.72]
[1760795988175,22.88,185.62,185.6,0.72]
[1760795988560,22.88,185.62,185.61,0.72]
[1760795988759,22.88,185.62,185.59,0.72000001]
[1760795988967,22.88,185.62,185.6,0.72]
[1760795989279,22.88,185.62,185.59,1e-08]
[1760795989280,23.0,185.62,185.59,1e-08]
[1760795989678,22.88,185.61,185.59,0.72000001]
[1760795990166,2.93758219,185.63,185.6,0.72]
[1760795990167,22.88,185.62,185.6,0.72]
[1760795990681,22.88,185.62,185.59,1e-08]
[1760795991279,22.88,185.61,185.59,0.72000001]
[1760795991775,22.88,185.61,185.6,0.72]
[1760795991975,22.88,185.62,185.59,1e-08]
[1760795992167,22.88,185.62,185.59,0.72000001]
[1760795992877,22.88,185.62,185.59,1e-08]
[1760795993172,2.93758219,185.63,185.59,1e-08]
[1760795993173,22.88,185.61,185.59,1e-08]
[1760795993764,31.87472492,185.63,185.59,1e-08]
[1760795994263,0.67,185.62,185.59,1e-08]
[1760795994464,0.12,185.61,185.59,1e-08]
[1760795994775,23.55,185.61,185.59,1e-08]
[1760795994960,0.12,185.6,185.59,1e-08]
[1760795995160,23.0,185.6,185.59,1e-08]
[1760795995381,23.67,185.6,185.59,1e-08]
[1760795996163,23.0,185.62,185.59,1e-08]
[1760795996678,23.67,185.62,185.59,1e-08]
[1760795997060,28.38740181,185.62,185.59,1e-08]
[1760795997253,0.67,185.61,185.59,1e-08]
[1760795997459,0.79,185.61,185.59,1e-08]
[1760795997672,0.67,185.6,185.59,1e-08]
[1760795999380,2.93758219,185.63,185.59,0.72000001]
[1760795999680,2.81758219,185.63,185.6,0.72]
[1760795999868,2.81758219,185.63,185.6,1.2587931]
[1760796000069,2.81758219,185.63,185.6,0.5387931]
[1760796000272,2.81758219,185.63,185.61,0.72]
[1760796000485,2.81758219,185.63,185.62,0.72]
[1760796000688,0.79,185.7,185.62,0.72]
[1760796000865,2.93683427,185.7,185.63,0.53870602]
[1760796001063,2.93683427,185.7,185.64,0.72]
[1760796001465,3.60683427,185.7,185.64,0.72]
[1760796001781,3.60683427,185.7,185.62,0.72]
[1760796002580,8.99188104,185.7,185.6,18.4587931]
[1760796002784,22.88,185.67,185.6,18.4587931]
[1760796002979,0.12,185.66,185.6,17.7387931]
[1760796003177,22.88,185.67,185.61,0.72]
[1760796004265,23.67,185.66,185.6,0.5387931]
[1760796004470,23.67,185.66,185.59,1e-08]
[1760796004764,22.88,185.64,185.59,1e-08]
[1760796004969,0.12,185.63,185.59,1e-08]
[1760796005172,0.79,185.63,185.59,1e-08]
[1760796005577,0.67,185.62,185.59,1e-08]
[1760796005982,23.55,185.62,185.59,1e-08]
[1760796006382,0.67,185.61,185.59,1e-08]
[1760796006990,23.54,185.6,185.59,1e-08]
[1760796008516,0.66,185.6,185.59,1e-08]
[1760796009804,22.88,185.6,185.59,1e-08]
[1760796009982,22.88,185.6,185.59,0.69000001]
[1760796010696,22.88,185.62,185.59,0.69000001]
[1760796011169,0.12,185.66,185.59,1e-08]
[1760796011370,0.78,185.69,185.6,0.69]
[1760796011593,0.66,185.69,185.61,0.53876407]
[1760796011777,22.88,185.67,185.6,0.69]
[1760796012091,22.88,185.67,185.59,0.53882214]
[1760796012092,0.78,185.66,185.59,0.53882214]
[1760796012498,0.78,185.66,185.59,1e-08]
[1760796012808,0.66,185.66,185.6,1.2287931]
[1760796012976,22.88,185.67,185.61,0.69]
[1760796013373,23.66,185.68,185.61,0.69]
[1760796013591,22.88,185.67,185.61,0.69]
[1760796014278,23.58,185.67,185.61,0.69]
[1760796014893,23.58,185.67,185.59,0.53882214]
[1760796014894,0.12,185.66,185.59,0.53882214]
[1760796015197,0.7,185.65,185.59,1e-08]
[1760796015394,22.88,185.64,185.59,1e-08]
[1760796015789,0.7,185.63,185.59,1e-08]
[1760796016697,0.7,185.62,185.59,1e-08]
[1760796019106,0.7,185.64,185.59,1e-08]
[1760796019480,0.7,185.63,185.59,1e-08]
[1760796020285,0.12,185.65,185.6,0.65]
[1760796020491,0.7,185.65,185.6,0.65]
[1760796020994,0.7,185.65,185.61,0.65]
[1760796021191,23.7,185.67,185.61,0.65]
[1760796021392,23.58,185.67,185.61,0.65]
[1760796021904,0.12,185.69,185.62,0.53873505]
[1760796022107,0.7,185.69,185.62,0.53873505]
[1760796022404,0.7,185.69,185.62,6.57599416]
[1760796022610,0.7,185.69,185.63,0.65]
[1760796022814,0.7,185.69,185.64,0.538677]
[1760796023001,25.81683427,185.7,185.64,1.188677]
[1760796023184,0.7,185.69,185.64,1.188677]
[1760796025594,0.7,185.68,185.64,0.65]
[1760796025796,26.39683427,185.7,185.64,0.65]
[1760796025998,3.51683427,185.7,185.64,0.65]
[1760796026197,3.51683427,185.7,185.64,6.03676649]
[1760796026400,0.7,185.72,185.65,1.18864799]
[1760796026701,0.7,185.72,185.66,0.65]
[1760796027406,0.7,185.72,185.67,0.53858997]
[1760796027710,0.7,185.71,185.67,0.53858997]
[1760796028108,3.63615281,185.75,185.68,0.65]
[1760796028295,26.39615281,185.75,185.68,1.18856096]
[1760796028499,0.7,185.74,185.68,1.18856096]
[1760796028810,0.7,185.73,185.68,1.18856096]
[1760796029197,2.81615281,185.75,185.69,0.65]
[1760796029397,2.81615281,185.75,185.7,0.53850296]
[1760796029604,2.81615281,185.75,185.71,0.65]
[1760796029913,3.51615281,185.75,185.71,0.65]
[1760796030415,2.81615281,185.75,185.72,0.65]
[1760796030588,0.1,185.8,185.73,10.87647521]
[1760796030793,0.1,185.8,185.75,10.87647521]
[1760796030992,0.1,185.8,185.77,10.87647521]
[1760796031302,0.1,185.8,185.79,10.87647521]
[1760796031805,0.1,185.85,185.79,11.52647521]
[1760796032009,0.1,185.85,185.81,10.87647521]
[1760796032199,0.1,185.85,185.81,0.53818416]
[1760796032200,0.7,185.84,185.81,0.53818416]
[1760796033396,0.1,185.85,185.81,1.18818416]
[1760796034292,0.1,185.85,185.82,0.65]
[1760796034596,0.1,185.85,185.83,0.53812624]
[1760796034992,0.1,185.85,185.83,1.18812624]
[1760796035218,0.1,185.85,185.84,11.52647521]
[1760796035405,0.1,185.85,185.84,12.06457249]
[1760796036514,0.1,185.85,185.84,11.52647521]
[1760796036702,0.1,185.85,185.84,11.41457249]
[1760796037497,0.1,185.85,185.84,0.53809728]
[1760796037718,0.8,185.85,185.8,5.38199834]
[1760796038019,0.1,185.85,185.82,10.87647521]
[1760796038316,0.1,185.85,185.83,1.18812624]
[1760796038528,0.1,185.85,185.84,10.87647521]
[1760796038713,0.1,185.85,185.84,11.52647521]
[1760796039790,0.1,185.85,185.84,16.90744808]
[1760796040217,0.1,185.85,185.84,11.52647521]
[1760796040419,0.1,185.85,185.84,11.41457249]
[1760796042316,0.1,185.85,185.84,12.06457249]
[1760796042815,0.1,185.85,185.84,17.44554536]
[1760796043004,0.1,185.85,185.84,11.41457249]
[1760796043203,0.78,185.85,185.84,11.41457249]
[1760796043402,0.78,185.85,185.84,10.87647521]
[1760796043603,0.1,185.85,185.84,10.87647521]
[1760796044612,0.1,185.85,185.84,11.41457249]
[1760796044807,0.1,185.85,185.84,28.61457249]
[1760796045012,0.1,185.85,185.84,29.32457249]
[1760796045705,0.1,185.85,185.84,34.70554536]
[1760796046107,0.1,185.85,185.84,33.99554536]
[1760796046498,0.1,185.85,185.84,34.70554536]
[1760796047820,0.1,185.85,185.84,34.60554536]
[1760796048531,0.1,185.85,185.84,138.90554536]
[1760796048717,0.1,185.85,185.84,138.36744808]
[1760796049714,0.1,185.85,185.84,140.36744807]
[1760796050900,0.1,185.85,185.84,138.36744808]
[1760796051118,0.1,185.86,185.85,27.87647521]
[1760796051426,0.1,185.86,185.85,140.80522687]
[1760796051633,0.1,185.86,185.85,138.26715855]
[1760796051834,0.1,185.86,185.85,140.26715854]
[1760796052009,0.1,185.86,185.85,167.62715854]
[1760796052626,0.1,185.86,185.85,165.62715855]
[1760796052832,0.1,185.86,185.85,137.55715855]
[1760796053629,0.1,185.86,185.85,132.17647521]
[1760796053630,0.78,185.86,185.85,132.17647521]
[1760796054319,0.1,185.86,185.85,137.55715855]
[1760796054729,0.1,185.86,185.85,138.26715855]
[1760796054905,0.1,185.86,185.85,33.96715855]
[1760796055822,0.1,185.86,185.85,33.25715855]
[1760796056423,0.78,185.86,185.85,10.87647521]
[1760796056627,0.78,185.86,185.85,11.41454354]
[1760796057012,0.78,185.86,185.83,0.53812624]
[1760796057214,0.68,185.85,185.84,10.87647521]
[1760796057632,0.1,185.86,185.84,10.87647521]
[1760796057824,0.1,185.86,185.85,0.53806833]
[1760796058440,0.78,185.86,185.85,0.53806833]
[1760796059039,0.1,185.86,185.85,0.53806833]
[1760796060241,0.1,185.86,185.85,5.91875167]
[1760796060736,0.1,185.86,185.85,11.41454354]
[1760796061113,0.78,185.86,185.84,0.53809728]
[1760796061414,0.68,185.85,185.84,0.53809728]
[1760796061743,0.68,185.85,185.82,10.87647521]
[1760796061918,0.68,185.84,185.82,11.41463041]
[1760796062114,0.1,185.86,185.82,11.41463041]
[1760796062314,0.68,185.85,185.82,11.41463041]
[1760796062836,0.1,185.86,185.82,12.12463041]
[1760796063136,0.1,185.86,185.83,5.38126244]
[1760796063329,0.1,185.86,185.84,0.53809728]
[1760796065235,0.1,185.86,185.84,5.91904294]
[1760796066630,0.1,185.86,185.84,0.53809728]
[1760796066831,0.81,185.86,185.85,11.41454354]
[1760796067827,0.81,185.86,185.85,10.87647521]
[1760796068142,0.81,185.86,185.84,17.0]
[1760796068329,0.71,185.85,185.84,27.87647521]
[1760796068534,0.71,185.85,185.84,17.0]
[1760796070225,0.1,185.86,185.85,10.87647521]
[1760796072727,0.1,185.86,185.85,27.87647521]
[1760796073747,0.1,185.86,185.85,33.93715855]
[1760796074529,0.1,185.86,185.85,34.47522688]
[1760796076428,0.1,185.86,185.85,36.47522687]
[1760796076851,0.1,185.86,185.85,140.77522687]
[1760796077155,0.1,185.86,185.85,140.23715854]
[1760796078056,1e-08,185.86,185.85,140.23715854]
[1760796081142,1e-08,185.86,185.85,167.57715854]
[1760796081662,22.88,186.0,185.9,10.87647521]
[1760796081840,0.7,185.94,185.92,10.87647521]
[1760796082041,0.7,185.94,185.93,11.41431203]
[1760796082556,0.32,186.01,185.93,11.41431203]
[1760796082760,0.7,185.96,185.94,10.87647521]
[1760796082938,23.2,186.01,185.95,0.53777897]
[1760796083264,23.2,186.01,185.94,11.4142831]
[1760796083442,0.7,186.0,185.94,11.4142831]
[1760796083639,0.7,185.99,185.94,11.4142831]
[1760796083846,0.7,185.98,185.94,11.4142831]
[1760796084138,0.7,185.97,185.94,11.4142831]
[1760796084344,0.7,185.96,185.94,16.79231161]
[1760796084650,0.7,185.95,185.94,16.79231161]
[1760796084960,0.7,185.95,185.94,11.4142831]
[1760796085955,0.7,185.95,185.94,16.79236205]
[1760796086561,23.2,186.01,185.94,11.4142831]
[1760796086746,0.7,185.95,185.93,0.53783682]
[1760796087257,22.88,186.0,185.93,0.53783682]
[1760796087460,0.7,185.94,185.93,0.53783682]
[1760796088342,0.7,185.97,185.93,5.91620502]
[1760796088751,0.7,185.96,185.94,10.87647521]
[1760796088951,0.7,185.96,185.95,11.41425418]
[1760796089864,0.7,185.96,185.94,10.87647521]
[1760796090063,0.7,185.95,185.94,10.87647521]
[1760796090764,0.7,185.98,185.93,17.47257272]
[1760796091075,0.7,185.98,185.93,30.23849322]
[1760796091242,0.2,186.01,185.94,11.55647521]
[1760796091444,0.7,186.0,185.95,0.53777897]
[1760796091650,0.7,185.99,185.95,0.53777897]
[1760796091864,0.7,185.98,185.95,5.91528917]
[1760796093148,0.7,185.97,185.95,0.53777897]
[1760796093469,0.7,185.96,185.94,5.37793368]
[1760796095377,0.7,185.98,185.95,5.91547573]
[1760796095671,0.7,185.97,185.95,5.91547573]
[1760796095852,0.7,186.0,185.95,5.91547573]
[1760796096170,0.7,185.99,185.95,5.91547573]
[1760796096467,0.7,185.99,185.95,6.59547573]
[1760796096648,0.9,186.01,185.95,6.59547573]
[1760796096848,0.9,186.01,185.97,10.87647521]
[1760796097049,0.7,186.0,185.98,0.53769222]
[1760796098964,0.2,186.01,185.98,2.69361967]
[1760796099168,0.9,186.01,185.98,2.69361967]
[1760796099360,0.9,186.01,185.99,10.87647521]
[1760796099361,0.2,186.01,185.99,10.87647521]
[1760796099666,0.2,186.01,186.0,11.41410961]
[1760796100071,0.2,186.01,186.0,13.56968851]
[1760796101264,0.2,186.01,186.0,18.94603259]
[1760796101574,0.2,186.01,186.0,19.62603259]
[1760796103182,0.2,186.01,186.0,18.94603259]
[1760796104381,0.2,186.02,186.0,19.63603259]
[1760796104551,0.2,186.02,186.01,10.87647521]
[1760796104757,0.2,186.02,186.01,11.56647521]
[1760796105878,0.2,186.02,186.0,8.06955738]
[1760796106175,0.2,186.02,186.0,8.75955738]
[1760796107873,0.7,186.01,186.0,8.06955738]
[1760796109064,0.7,186.01,185.96,50.89]
[1760796109065,0.7,186.01,185.97,5.91489201]
[1760796109378,0.7,186.0,185.99,10.87647521]
[1760796109691,0.7,186.0,185.97,0.53772113]
[1760796109980,0.7,185.99,185.97,0.53772113]
[1760796110280,0.7,185.99,185.97,2.69376478]
[1760796111575,0.7,185.99,185.97,0.53772113]
[1760796111982,0.7,185.98,185.97,11.41419634]
[1760796112273,0.7,185.98,185.95,11.41425418]
[1760796112482,0.7,185.97,185.93,0.53783682]
[1760796112662,0.7,185.97,185.89,30.44810502]
[1760796112663,0.7,185.97,185.94,2.15627611]
[1760796112861,0.12,185.99,185.9,0.53792361]
[1760796112862,0.7,185.96,185.9,0.53792361]
[1760796113064,0.12,185.95,185.87,0.53801043]
[1760796113268,0.7,185.94,185.87,2.15720641]
[1760796113470,0.82,185.93,185.87,2.15720641]
[1760796113683,0.7,185.92,185.85,10.87647521]
[1760796113875,0.7,185.91,185.85,27.05639592]
[1760796114076,0.7,185.9,185.85,27.05639592]
[1760796114275,0.7,185.89,185.84,0.53809728]
[1760796114575,0.7,185.91,185.86,16.17904813]
[1760796114885,0.7,185.91,185.87,11.41448564]
[1760796115668,0.7,185.93,185.87,12.10448564]
[1760796116084,0.7,185.93,185.89,10.87647521]
[1760796116387,0.7,185.93,185.9,0.53792361]
[1760796116594,0.7,185.92,185.89,10.87647521]
[1760796116797,0.7,185.91,185.89,10.87647521]
[1760796117090,0.7,185.9,185.89,10.87647521]
[1760796117871,0.7,185.93,185.89,10.87647521]
[1760796118072,0.7,185.92,185.89,10.87647521]
[1760796118294,0.7,185.92,185.9,0.53792361]
[1760796120187,9.62167788,186.0,185.9,17.5379236]
[1760796120188,22.88,185.98,185.9,17.5379236]
[1760796120394,0.7,185.94,185.9,17.5379236]
[1760796120592,0.7,185.93,185.9,16.99999999]
[1760796120895,0.7,185.92,185.83,16.94771991]
[1760796121102,0.7,185.92,185.84,16.71801799]
[1760796121278,0.7,185.91,185.84,5.91899903]
[1760796121589,0.7,185.9,185.83,10.87647521]
[1760796121786,0.7,185.89,185.83,10.87647521]
[1760796121993,0.7,185.88,185.83,10.87647521]
[1760796122178,0.7,185.87,185.83,10.87647521]
[1760796122569,0.7,185.87,185.83,16.25766392]
[1760796123167,0.7,185.86,185.82,16.72069424]
[1760796123371,0.7,185.85,185.81,16.99999999]
[1760796123807,0.7,185.84,185.79,16.1851582]
[1760796124095,0.7,185.83,185.75,0.538358]
[1760796124394,22.88,185.82,185.75,16.18777822]
[1760796124595,22.88,185.82,185.73,5.38402076]
[1760796124596,0.12,185.81,185.73,5.92243674]
[1760796124774,22.88,185.82,185.73,5.92243674]
[1760796124775,0.7,185.82,185.75,10.87647521]
[1760796125091,0.7,185.82,185.76,0.53832902]
[1760796125294,0.7,185.82,185.75,10.87647521]
[1760796125499,0.7,185.81,185.75,10.87647521]
[1760796125795,0.12,185.85,185.77,10.87647521]
[1760796126003,0.7,185.82,185.77,10.87647521]
[1760796126190,0.7,185.81,185.76,0.53832902]
[1760796126387,0.7,185.8,185.74,16.79864693]
[1760796126789,0.71,185.79,185.73,5.38402076]
[1760796126996,0.71,185.79,185.73,10.87647521]
[1760796127888,0.71,185.79,185.74,0.53838699]
[1760796128089,0.71,185.79,185.74,1.21838699]
[1760796128495,0.71,185.78,185.73,10.87647521]
[1760796128700,0.71,185.77,185.71,6.60317054]
[1760796128900,0.71,185.76,185.71,0.53847396]
[1760796129104,0.71,185.78,185.71,0.53847396]
[1760796129283,0.71,185.78,185.72,11.55647521]
[1760796130393,0.71,185.77,185.71,0.53847396]
[1760796130808,0.71,185.77,185.7,10.87647521]
[1760796130987,0.71,185.76,185.7,10.87647521]
[1760796131387,0.71,185.75,185.7,10.87647521]
[1760796131693,0.71,185.74,185.7,10.87647521]
[1760796132387,0.71,185.76,185.7,11.55647521]
[1760796132994,0.71,185.75,185.69,0.53853196]
[1760796133193,0.71,185.75,185.68,0.68]
[1760796134299,0.71,185.75,185.67,6.12444507]
[1760796134510,0.7,185.74,185.67,6.12440236]
[1760796134803,0.7,185.73,185.67,0.2]
[1760796135006,0.12,185.72,185.67,0.2]
[1760796135194,0.7,185.71,185.67,0.2]
[1760796135703,2.81592799,185.73,185.67,0.73858997]
[1760796135892,2.81592799,185.73,185.67,1.44858997]
[1760796136092,2.81592799,185.73,185.67,6.83447725]
[1760796136314,2.81592799,185.73,185.68,10.87647521]
[1760796136483,2.81592799,185.73,185.69,0.71]
[1760796136680,2.81592799,185.73,185.68,10.87647521]
[1760796136885,2.81592799,185.73,185.68,11.58647521]
[1760796137080,3.51592799,185.73,185.68,16.97207256]
[1760796138208,2.81592799,185.73,185.69,1.24853196]
[1760796138390,23.58,185.77,185.7,11.58647521]
[1760796138606,26.39529568,185.77,185.71,0.53847396]
[1760796138904,3.51529568,185.77,185.71,0.53847396]
[1760796139289,3.51529568,185.77,185.72,10.87647521]
[1760796139504,0.7,185.79,185.73,0.71]
[1760796139692,3.51502667,185.79,185.73,0.71]
[1760796140292,3.51502667,185.79,185.72,10.87647521]
[1760796140492,0.7,185.78,185.72,10.87647521]
[1760796141113,2.81502667,185.79,185.73,1.24841598]
[1760796141416,0.7,185.81,185.74,11.58647521]
[1760796141587,0.7,185.8,185.74,10.87647521]
[1760796141788,0.7,185.79,185.74,10.87647521]
[1760796142107,0.7,185.78,185.74,10.87647521]
[1760796142318,0.7,185.77,185.72,1.24844497]
[1760796142495,0.7,185.79,185.73,11.58647521]
[1760796142691,0.7,185.79,185.73,14.40109871]
[1760796142891,0.7,185.79,185.73,0.71]
[1760796143090,0.7,185.79,185.72,5.92286963]
[1760796143292,0.7,185.78,185.72,5.92286963]
[1760796143693,0.7,185.78,185.73,10.87647521]
[1760796144109,0.7,185.78,185.73,11.58647521]
[1760796145117,0.12,185.81,185.73,16.26054422]
[1760796145298,0.82,185.81,185.74,1.24838699]
[1760796145505,0.7,185.81,185.75,0.71]
[1760796145706,0.7,185.81,185.76,0.53832902]
[1760796145914,2.9346235,185.82,185.76,0.53832902]
[1760796146620,2.8146235,185.82,185.76,1.24832902]
[1760796147399,0.82,185.81,185.75,10.87647521]
[1760796147925,0.7,185.8,185.73,28.26410553]
[1760796148125,0.82,185.79,185.73,22.88]
[1760796148309,0.7,185.78,185.73,22.88]
[1760796148511,0.12,185.81,185.73,22.88]
[1760796148710,0.12,185.81,185.74,1.24838699]
[1760796148711,0.7,185.8,185.74,1.24838699]
[1760796149521,0.7,185.8,185.74,6.63221921]
[1760796150720,0.7,185.8,185.74,10.87647521]
[1760796151309,0.7,185.8,185.74,11.4148622]
[1760796151714,0.12,185.81,185.75,0.71]
[1760796153601,0.82,185.86,185.78,5.38271073]
[1760796153802,0.7,185.86,185.79,0.5382421]
[1760796154002,0.12,185.85,185.79,1.2482421]
[1760796154319,22.88,185.87,185.8,0.71]
[1760796154503,23.7,185.87,185.8,0.71]
[1760796155323,23.58,185.87,185.81,0.53818416]
[1760796155709,0.82,185.87,185.81,0.53818416]
[1760796155910,0.7,185.87,185.81,0.53818416]